fUSD/lending_fUSD_20240526
["ID","MTS","AMOUNT","RATE_DAILY","PERIOD"]
[327957795,1716708645131,-500.0,0.00027397,4]
[327957796,1716708645142,-500.0,0.00027397,4]
[327957797,1716708645152,-500.0,0.00027397,4]
[327957798,1716708645162,-628.89,0.00027397,4]
[327957799,1716708645171,-500.0,0.00027397,4]
[327957800,1716708645181,-500.0,0.00027397,4]
[327957801,1716708645191,-536.62,0.00027397,2]
[327957802,1716708645205,-2647.15,0.00027397,4]
[327957803,1716708645214,-521.28,0.00027397,4]
[327957804,1716708645224,-1397.89,0.00027397,4]
[327957805,1716708645234,-500.0,0.00027397,4]
[327957806,1716708645244,-500.0,0.00027397,4]
[327957807,1716708645254,-1912.83,0.00027397,4]
[327957808,1716708645264,-500.0,0.00027397,4]
[327957809,1716708645273,-1436.59,0.00027397,4]
[327957810,1716708645283,-1136.39,0.00027397,4]
[327957811,1716708645294,-500.0,0.00027397,4]
[327957812,1716708645303,-500.0,0.00027397,4]
[327957813,1716708645313,-500.0,0.00027397,2]
[327957814,1716708645322,-983.31,0.00027397,4]
[327957815,1716708645332,-2377.12,0.00027397,4]
[327957816,1716708645342,-1068.22,0.00027397,4]
[327957817,1716708645351,-500.0,0.00027397,4]
[327957818,1716708645362,-500.0,0.00027397,4]
[327957819,1716708645372,-777.07,0.00027397,4]
[327957820,1716708645382,-500.0,0.00027397,4]
[327957821,1716708645392,-2331.4,0.00027397,4]
[327957822,1716708645402,-574.09208139,0.00027397,4]
[327957823,1716708645412,-500.0,0.00027397,4]
[327957824,1716708645422,-968.7,0.00027397,4]
[327957825,1716708645432,-150.0,0.00027435,2]
[327957826,1716708645442,-150.0,0.0002744,2]
[327957827,1716708645454,-656.17,0.00027442,2]
[327957828,1716708645464,-150.0,0.00027538,2]
[327957829,1716708645474,-2000.0,0.00027543,2]
[327957830,1716708645484,-200.0,0.00027543,2]
[327957831,1716708645494,-150.0,0.00027572,2]
[327957832,1716708645505,-150.0,0.0002762,2]
[327957833,1716708645515,-296.0,0.00027633,5]
[327957834,1716708645525,-150.0,0.00027633,2]
[327957835,1716708645535,-150.5,0.00027641,15]
[327957836,1716708645545,-150.5,0.00027641,15]
[327957837,1716708645555,-150.5,0.00027651,15]
[327957838,1716708645565,-150.5,0.00027651,15]
[327957839,1716708645575,-150.5,0.00027661,15]
[327957840,1716708645585,-150.5,0.00027661,15]
[327957841,1716708645595,-501.73899977,0.0002767,2]
[327957842,1716708645605,-378.00000072,0.0002767,4]
[327957843,1716708645616,-500.0,0.00027671,4]
[327957844,1716708645626,-500.0,0.00027671,4]
[327957845,1716708645636,-500.0,0.00027671,4]
[327957846,1716708645647,-500.0,0.00027671,4]
[327957847,1716708645656,-500.0,0.00027671,4]
[327957848,1716708645665,-500.0,0.00027671,4]
[327957849,1716708645675,-500.0,0.00027671,4]
[327957850,1716708645684,-500.0,0.00027671,4]
[327957851,1716708645696,-500.0,0.00027671,4]
[327957852,1716708645705,-500.0,0.00027671,4]
[327957853,1716708645714,-500.0,0.00027671,4]
[327957854,1716708645723,-500.0,0.00027671,4]
[327957855,1716708645732,-500.0,0.00027671,4]
[327957856,1716708645741,-500.0,0.00027671,4]
[327957857,1716708645750,-500.0,0.00027671,4]
[327957858,1716708645759,-500.0,0.00027671,4]
[327957859,1716708645768,-585.01138835,0.00027671,4]
[327957860,1716708645778,-500.0,0.00027671,4]
[327957861,1716708645787,-391.15679672,0.00027671,4]
[327957862,1716708645797,-500.0,0.00027671,4]
[327957863,1716708645807,-500.0,0.00027671,4]
[327957864,1716708645816,-500.0,0.00027671,2]
[327957865,1716708645826,-553.71832843,0.00027671,4]
[327957866,1716708645835,-500.0,0.00027671,4]
[327957867,1716708645845,-500.0,0.00027671,4]
[327957868,1716708645855,-500.0,0.00027671,4]
[327957869,1716708645864,-500.0,0.00027671,4]
[327957870,1716708645874,-500.0,0.00027671,4]
[327957871,1716708645884,-500.0,0.00027671,4]
[327957872,1716708645894,-500.0,0.00027671,4]
[327957873,1716708645903,-500.0,0.00027671,4]
[327957874,1716708645912,-500.0,0.00027671,4]
[327957875,1716708645922,-500.0,0.00027671,4]
[327957876,1716708645932,-500.0,0.00027671,4]
[327957877,1716708645942,-536.72266424,0.00027671,4]
[327957878,1716708645957,-500.0,0.00027671,4]
[327957879,1716708645966,-500.0,0.00027671,4]
[327957880,1716708645976,-500.0,0.00027671,4]
[327957881,1716708645986,-500.0,0.00027671,4]
[327957882,1716708645996,-500.0,0.00027671,4]
[327957883,1716708646005,-500.0,0.00027671,4]
[327957884,1716708646015,-233.28688085,0.00027671,4]
[327957885,1716708646025,-500.0,0.00027671,4]
[327957886,1716708646037,-500.0,0.00027671,4]
[327957887,1716708646046,-500.0,0.00027671,4]
[327957888,1716708646056,-500.0,0.00027671,4]
[327957889,1716708646066,-500.0,0.00027671,4]
[327957890,1716708646076,-500.0,0.00027671,4]
[327957891,1716708646086,-500.0,0.00027671,4]
[327957892,1716708646096,-500.0,0.00027671,4]
[327957893,1716708646105,-753.35,0.00027671,4]
[327957894,1716708646115,-500.0,0.00027671,4]
[327957895,1716708646126,-500.0,0.00027671,4]
[327957896,1716708646136,-500.0,0.00027671,4]
[327957897,1716708646145,-500.0,0.00027671,4]
[327957898,1716708646155,-500.0,0.00027671,4]
[327957899,1716708646164,-500.0,0.00027671,4]
[327957900,1716708646174,-500.0,0.00027671,4]
[327957901,1716708646183,-500.0,0.00027671,4]
[327957902,1716708646192,-500.0,0.00027671,4]
[327957903,1716708646204,-500.0,0.00027671,4]
[327957904,1716708646214,-500.0,0.00027671,4]
[327957905,1716708646223,-500.0,0.00027671,4]
[327957906,1716708646233,-500.0,0.00027671,4]
[327957907,1716708646243,-500.0,0.00027671,4]
[327957908,1716708646253,-500.0,0.00027671,4]
[327957909,1716708646262,-520.43,0.00027671,4]
[327957910,1716708646272,-500.0,0.00027671,4]
[327957911,1716708646282,-500.0,0.00027671,4]
[327957912,1716708646291,-500.0,0.00027671,4]
[327957913,1716708646300,-500.0,0.00027671,4]
[327957914,1716708646310,-500.0,0.00027671,4]
[327957915,1716708646320,-500.0,0.00027671,4]
[327957916,1716708646330,-500.0,0.00027671,4]
[327957918,1716708646339,-500.0,0.00027671,4]
[327957919,1716708646349,-500.0,0.00027671,4]
[327957921,1716708646358,-500.0,0.00027671,4]
[327957923,1716708646367,-500.0,0.00027671,4]
[327957925,1716708646377,-500.0,0.00027671,4]
[327957926,1716708646387,-500.0,0.00027671,4]
[327957927,1716708646396,-500.0,0.00027671,4]
[327957928,1716708646405,-500.0,0.00027671,4]
[327957929,1716708646414,-500.0,0.00027671,4]
[327957930,1716708646424,-500.0,0.00027671,4]
[327957931,1716708646433,-500.0,0.00027671,4]
[327957932,1716708646443,-500.0,0.00027671,4]
[327957933,1716708646454,-500.0,0.00027671,4]
[327957934,1716708646464,-500.0,0.00027671,4]
[327957935,1716708646474,-500.0,0.00027671,4]
[327957936,1716708646483,-500.0,0.00027671,4]
[327957937,1716708646493,-500.0,0.00027671,4]
[327957938,1716708646503,-500.0,0.00027671,4]
[327957939,1716708646512,-500.0,0.00027671,4]
[327957940,1716708646522,-500.0,0.00027671,4]
[327957941,1716708646531,-500.0,0.00027671,4]
[327957942,1716708646541,-541.87,0.00027671,4]
[327957943,1716708646550,-685.07,0.00027671,4]
[327957944,1716708646560,-500.0,0.00027671,4]
[327957945,1716708646569,-500.0,0.00027671,4]
[327957946,1716708646579,-500.0,0.00027671,4]
[327957947,1716708646588,-500.0,0.00027671,4]
[327957948,1716708646598,-500.0,0.00027671,4]
[327957949,1716708646607,-500.0,0.00027671,4]
[327957950,1716708646616,-500.0,0.00027671,4]
[327957951,1716708646626,-500.0,0.00027671,4]
[327957952,1716708646635,-500.0,0.00027671,4]
[327957953,1716708646644,-500.0,0.00027671,4]
[327957954,1716708646654,-500.0,0.00027671,4]
[327957955,1716708646664,-503.2,0.00027671,4]
[327957956,1716708646673,-2246.13,0.00027671,4]
[327957957,1716708646683,-500.0,0.00027671,4]
[327957958,1716708646693,-500.0,0.00027671,4]
[327957959,1716708646704,-750.81,0.00027671,4]
[327957960,1716708646713,-500.0,0.00027671,4]
[327957961,1716708646723,-500.0,0.00027671,4]
[327957962,1716708646732,-526.41,0.00027671,4]
[327957963,1716708646742,-500.0,0.00027671,4]
[327957964,1716708646752,-329.75,0.00027671,4]
[327957965,1716708646761,-918.81,0.00027671,4]
[327957966,1716708646771,-758.39,0.00027671,4]
[327957967,1716708646780,-728.58,0.00027671,4]
[327957968,1716708646790,-500.0,0.00027671,4]
[327957969,1716708646799,-500.0,0.00027671,4]
[327957970,1716708646809,-1055.05,0.00027671,4]
[327957971,1716708646819,-1439.71,0.00027671,2]
[327957972,1716708646829,-500.0,0.00027671,4]
[327957973,1716708646839,-390.51938982,0.00027671,4]
[327957974,1716708646849,-500.0,0.00027671,4]
[327957975,1716708646859,-1557.54,0.00027671,4]
[327957976,1716708646869,-500.0,0.00027671,4]
[327957977,1716708646879,-500.0,0.00027671,4]
[327957978,1716708646889,-500.0,0.00027671,4]
[327957979,1716708646898,-500.0,0.00027671,4]
[327957980,1716708646908,-500.0,0.00027671,4]
[327957981,1716708646918,-500.0,0.00027671,4]
[327957982,1716708646928,-645.95,0.00027671,4]
[327957983,1716708646938,-500.0,0.00027671,4]
[327957984,1716708646952,-559.79952064,0.00027671,4]
[327957985,1716708646961,-200.295476,0.00027671,7]
[327957986,1716708646971,-200.295476,0.00027671,7]
[327957987,1716708646984,-500.0,0.00027671,4]
[327957988,1716708646994,-512.20883798,0.00027671,4]
[327957989,1716708647004,-500.0,0.00027671,4]
[327957990,1716708647013,-781.31,0.00027671,4]
[327957991,1716708647024,-1388.31,0.00027671,4]
[327957992,1716708647034,-500.0,0.00027671,4]
[327957993,1716708647044,-500.0,0.00027671,4]
[327957994,1716708647054,-546.70173904,0.00027671,4]
[327957995,1716708647064,-500.0,0.00027671,4]
[327957996,1716708647074,-1537.44,0.00027671,4]
[327957997,1716708647083,-577.18,0.00027671,4]
[327957998,1716708647093,-1251.98,0.00027671,4]
[327957999,1716708647102,-500.0,0.00027671,4]
[327958000,1716708647112,-500.0,0.00027671,4]
[327958001,1716708647122,-545.38,0.00027671,4]
[327958002,1716708647132,-500.0,0.00027671,4]
[327958003,1716708647141,-500.0,0.00027671,4]
[327958004,1716708647151,-500.0,0.00027671,4]
[327958005,1716708647161,-650.74,0.00027671,4]
[327958006,1716708647172,-500.0,0.00027671,4]
[327958007,1716708647182,-851.46,0.00027671,4]
[327958008,1716708647193,-1237.48,0.00027671,4]
[327958009,1716708647203,-561.32,0.00027671,4]
[327958010,1716708647213,-500.0,0.00027671,4]
[327958011,1716708647223,-1610.98,0.00027671,4]
[327958012,1716708647232,-557.75,0.00027671,4]
[327958013,1716708647242,-151.0,0.00027671,7]
[327958015,1716708647251,-151.0,0.00027671,7]
[327958017,1716708647260,-616.14,0.00027671,4]
[327958019,1716708647270,-500.0,0.00027671,4]
[327958021,1716708647280,-1118.78,0.00027671,4]
[327958038,1716708647424,-500.0,0.00027671,4]
[327958039,1716708647468,-500.0,0.00027671,4]
[327958040,1716708647478,-500.0,0.00027671,4]
[327958041,1716708647488,-1101.87,0.00027671,4]
[327958042,1716708647497,-813.12,0.00027671,4]
[327958043,1716708647506,-500.0,0.00027671,4]
[327958044,1716708647516,-1257.42,0.00027671,4]
[327958045,1716708647526,-151.0,0.00027671,7]
[327958046,1716708647535,-1252.19,0.00027671,4]
[327958047,1716708647545,-520.05,0.00027671,4]
[327958048,1716708647554,-973.74,0.00027671,2]
[327958049,1716708647563,-758.42,0.00027671,4]
[327958050,1716708647573,-500.0,0.00027671,4]
[327958051,1716708647583,-151.0,0.00027671,7]
[327958052,1716708647592,-599.07,0.00027671,4]
[327958053,1716708647601,-1589.27,0.00027671,4]
[327958054,1716708647611,-500.0,0.00027671,4]
[327958055,1716708647621,-500.0,0.00027671,4]
[327958056,1716708647631,-572.74,0.00027671,4]
[327958057,1716708647641,-500.0,0.00027671,4]
[327958058,1716708647651,-1167.56,0.00027671,4]
[327958059,1716708647661,-855.1,0.00027671,4]
[327958060,1716708647670,-500.0,0.00027671,4]
[327958061,1716708647679,-500.0,0.00027671,4]
[327958062,1716708647689,-500.0,0.00027671,4]
[327958063,1716708647698,-500.0,0.00027671,4]
[327958064,1716708647707,-1372.33,0.00027671,4]
[327958065,1716708647717,-500.0,0.00027671,4]
[327958066,1716708647727,-500.0,0.00027671,4]
[327958067,1716708647736,-500.0,0.00027671,4]
[327958068,1716708647746,-500.0,0.00027671,4]
[327958069,1716708647756,-500.0,0.00027671,4]
[327958070,1716708647766,-500.0,0.00027671,4]
[327958071,1716708647775,-500.0,0.00027671,4]
[327958072,1716708647785,-1129.81,0.00027671,4]
[327958073,1716708647794,-500.0,0.00027671,4]
[327958074,1716708647804,-500.0,0.00027671,4]
[327958075,1716708647814,-500.0,0.00027671,4]
[327958076,1716708647823,-500.0,0.00027671,4]
[327958077,1716708647833,-651.03,0.00027671,4]
[327958078,1716708647842,-1174.58,0.00027671,4]
[327958079,1716708647851,-760.4,0.00027671,4]
[327958080,1716708647861,-500.0,0.00027671,4]
[327958081,1716708647871,-500.0,0.00027671,4]
[327958082,1716708647880,-500.0,0.00027671,4]
[327958083,1716708647890,-625.05,0.00027671,4]
[327958084,1716708647900,-764.19,0.00027671,4]
[327958085,1716708647909,-500.0,0.00027671,4]
[327958086,1716708647919,-500.0,0.00027671,4]
[327958087,1716708647928,-1067.5,0.00027671,4]
[327958088,1716708647938,-500.0,0.00027671,4]
[327958089,1716708647952,-500.0,0.00027671,4]
[327958090,1716708647963,-500.0,0.00027671,4]
[327958091,1716708647972,-163.387328,0.00027671,7]
[327958092,1716708647983,-500.0,0.00027671,4]
[327958093,1716708647992,-500.0,0.00027671,4]
[327958094,1716708648001,-500.0,0.00027671,4]
[327958095,1716708648011,-500.0,0.00027671,4]
[327958096,1716708648021,-500.0,0.00027671,4]
[327958097,1716708648034,-500.0,0.00027671,4]
[327958098,1716708648043,-535.44,0.00027671,4]
[327958099,1716708648053,-580.78,0.00027671,4]
[327958100,1716708648063,-500.0,0.00027671,4]
[327958101,1716708648072,-500.0,0.00027671,4]
[327958102,1716708648082,-500.0,0.00027671,4]
[327958103,1716708648092,-500.0,0.00027671,4]
[327958104,1716708648101,-2031.76,0.00027671,4]
[327958105,1716708648110,-500.0,0.00027671,4]
[327958106,1716708648120,-500.0,0.00027671,4]
[327958107,1716708648130,-500.0,0.00027671,4]
[327958108,1716708648140,-174.655598,0.00027671,7]
[327958109,1716708648149,-548.48,0.00027671,4]
[327958110,1716708648159,-174.655598,0.00027671,7]
[327958111,1716708648168,-500.0,0.00027671,4]
[327958112,1716708648178,-500.0,0.00027671,4]
[327958113,1716708648187,-151.0,0.00027671,7]
[327958114,1716708648196,-151.0,0.00027671,7]
[327958115,1716708648208,-500.0,0.00027671,4]
[327958116,1716708648217,-174.655598,0.00027671,7]
[327958117,1716708648227,-174.655598,0.00027671,7]
[327958118,1716708648237,-607.13,0.00027671,4]
[327958119,1716708648246,-500.0,0.00027671,4]
[327958120,1716708648256,-500.0,0.00027671,4]
[327958121,1716708648265,-167.684239,0.00027671,7]
[327958122,1716708648275,-1580.34,0.00027671,4]
[327958123,1716708648284,-500.0,0.00027671,4]
[327958124,1716708648294,-1138.7,0.00027671,4]
[327958125,1716708648304,-787.99,0.00027671,4]
[327958126,1716708648314,-299.03021865,0.00027671,4]
[327958127,1716708648325,-546.96,0.00027671,4]
[327958128,1716708648333,-517.92,0.00027671,4]
[327958129,1716708648344,-500.0,0.00027671,4]
[327958130,1716708648353,-500.0,0.00027671,4]
[327958131,1716708648362,-509.18,0.00027671,4]
[327958132,1716708648372,-500.0,0.00027671,4]
[327958133,1716708648381,-500.0,0.00027671,4]
[327958134,1716708648391,-695.74,0.00027671,4]
[327958135,1716708648400,-500.0,0.00027671,4]
[327958136,1716708648410,-500.0,0.00027671,4]
[327958137,1716708648420,-534.39,0.00027671,4]
[327958138,1716708648429,-500.0,0.00027671,4]
[327958139,1716708648440,-500.0,0.00027671,4]
[327958140,1716708648451,-658.34,0.00027671,4]
[327958141,1716708648460,-502.0,0.00027671,4]
[327958142,1716708648470,-500.0,0.00027671,4]
[327958143,1716708648480,-537.8,0.00027671,4]
[327958144,1716708648490,-971.01,0.00027671,4]
[327958145,1716708648499,-746.88,0.00027671,4]
[327958146,1716708648509,-500.0,0.00027671,4]
[327958147,1716708648519,-507.24,0.00027671,4]
[327958148,1716708648529,-581.16878646,0.00027671,4]
[327958149,1716708648538,-781.56,0.00027671,4]
[327958150,1716708648548,-1392.63,0.00027671,4]
[327958151,1716708648558,-500.0,0.00027671,4]
[327958152,1716708648567,-592.79,0.00027671,4]
[327958153,1716708648576,-1007.12,0.00027671,4]
[327958154,1716708648586,-643.6,0.00027671,4]
[327958155,1716708648595,-500.0,0.00027671,4]
[327958156,1716708648604,-616.33,0.00027671,4]
[327958157,1716708648614,-500.0,0.00027671,4]
[327958158,1716708648624,-500.0,0.00027671,4]
[327958159,1716708648633,-500.0,0.00027671,4]
[327958160,1716708648644,-500.0,0.00027671,4]
[327958161,1716708648653,-711.82,0.00027671,4]
[327958162,1716708648662,-500.0,0.00027671,4]
[327958163,1716708648672,-901.22,0.00027671,4]
[327958164,1716708648682,-500.0,0.00027671,4]
[327958165,1716708648692,-500.0,0.00027671,4]
[327958166,1716708648702,-500.0,0.00027671,4]
[327958167,1716708648712,-500.0,0.00027671,4]
[327958168,1716708648721,-539.19,0.00027671,4]
[327958169,1716708648731,-500.0,0.00027671,4]
[327958170,1716708648741,-500.0,0.00027671,4]
[327958171,1716708648751,-500.0,0.00027671,4]
[327958172,1716708648760,-500.0,0.00027671,4]
[327958173,1716708648770,-500.0,0.00027671,4]
[327958174,1716708648780,-500.0,0.00027671,4]
[327958175,1716708648790,-500.0,0.00027671,4]
[327958176,1716708648799,-500.0,0.00027671,4]
[327958177,1716708648810,-706.92,0.00027671,4]
[327958178,1716708648820,-500.0,0.00027671,4]
[327958179,1716708648829,-632.53,0.00027671,4]
[327958180,1716708648839,-668.98,0.00027671,4]
[327958181,1716708648848,-500.0,0.00027671,4]
[327958182,1716708648858,-500.0,0.00027671,4]
[327958183,1716708648868,-614.16,0.00027671,4]
[327958184,1716708648878,-500.0,0.00027671,4]
[327958185,1716708648888,-500.0,0.00027671,4]
[327958186,1716708648898,-500.0,0.00027671,4]
[327958187,1716708648909,-151.0,0.00027671,7]
[327958188,1716708648919,-151.0,0.00027671,7]
[327958189,1716708648930,-860.9,0.00027671,4]
[327958190,1716708648942,-500.0,0.00027671,4]
[327958191,1716708648955,-670.9,0.00027671,4]
[327958192,1716708648964,-810.61,0.00027671,4]
[327958193,1716708648973,-659.58,0.00027671,4]
[327958194,1716708648983,-500.0,0.00027671,4]
[327958195,1716708648992,-151.0,0.00027671,7]
[327958196,1716708649002,-151.0,0.00027671,7]
[327958197,1716708649012,-500.0,0.00027671,4]
[327958198,1716708649022,-595.24,0.00027671,4]
[327958199,1716708649036,-610.52,0.00027671,4]
[327958200,1716708649046,-552.66,0.00027671,4]
[327958201,1716708649056,-1436.03,0.00027671,4]
[327958202,1716708649065,-500.0,0.00027671,4]
[327958203,1716708649075,-500.0,0.00027671,4]
[327958204,1716708649085,-500.0,0.00027671,4]
[327958205,1716708649094,-1463.85,0.00027671,4]
[327958206,1716708649104,-500.0,0.00027671,4]
[327958207,1716708649114,-500.0,0.00027671,4]
[327958208,1716708649124,-500.0,0.00027671,4]
[327958209,1716708649134,-500.0,0.00027671,4]
[327958210,1716708649144,-777.06,0.00027671,4]
[327958211,1716708649155,-500.0,0.00027671,4]
[327958212,1716708649164,-841.17,0.00027671,4]
[327958213,1716708649174,-968.08,0.00027671,4]
[327958214,1716708649183,-500.0,0.00027671,4]
[327958215,1716708649193,-500.0,0.00027671,4]
[327958216,1716708649205,-500.0,0.00027671,4]
[327958217,1716708649215,-970.33,0.00027671,4]
[327958218,1716708649224,-504.78,0.00027671,4]
[327958219,1716708649234,-1253.86,0.00027671,4]
[327958220,1716708649243,-500.0,0.00027671,4]
[327958221,1716708649251,-811.43,0.00027671,4]
[327958222,1716708649261,-500.0,0.00027671,4]
[327958223,1716708649270,-151.0,0.00027671,7]
[327958224,1716708649279,-151.0,0.00027671,7]
[327958225,1716708649289,-295.59,0.00027671,4]
[327958226,1716708649299,-151.0,0.00027671,7]
[327958227,1716708649308,-500.0,0.00027671,4]
[327958228,1716708649319,-500.0,0.00027671,4]
[327958229,1716708649328,-539.63695455,0.00027671,4]
[327958230,1716708649338,-500.0,0.00027671,4]
[327958231,1716708649348,-500.0,0.00027671,4]
[327958232,1716708649358,-584.25057817,0.00027671,4]
[327958233,1716708649369,-500.0,0.00027671,4]
[327958234,1716708649379,-500.0,0.00027671,4]
[327958235,1716708649389,-555.23,0.00027671,4]
[327958236,1716708649399,-500.0,0.00027671,4]
[327958237,1716708649409,-500.0,0.00027671,4]
[327958238,1716708649418,-500.0,0.00027671,4]
[327958239,1716708649428,-500.0,0.00027671,4]
[327958240,1716708649438,-572.6445169,0.00027671,4]
[327958241,1716708649447,-986.78,0.00027671,4]
[327958242,1716708649459,-500.0,0.00027671,4]
[327958243,1716708649469,-500.0,0.00027671,4]
[327958244,1716708649479,-500.0,0.00027671,4]
[327958245,1716708649489,-576.73,0.00027671,4]
[327958246,1716708649498,-500.0,0.00027671,4]
[327958247,1716708649507,-500.0,0.00027671,4]
[327958248,1716708649518,-500.0,0.00027671,4]
[327958249,1716708649527,-500.0,0.00027671,4]
[327958250,1716708649536,-500.0,0.00027671,4]
[327958251,1716708649545,-598.65,0.00027671,4]
[327958252,1716708649555,-517.69,0.00027671,4]
[327958253,1716708649564,-591.47,0.00027671,4]
[327958254,1716708649573,-500.0,0.00027671,4]
[327958255,1716708649583,-500.0,0.00027671,4]
[327958256,1716708649592,-693.0,0.00027671,4]
[327958257,1716708649602,-500.0,0.00027671,4]
[327958258,1716708649614,-151.0,0.00027671,7]
[327958259,1716708649624,-153.783927,0.00027671,7]
[327958260,1716708649633,-500.0,0.00027671,4]
[327958261,1716708649643,-2648.85,0.00027671,4]
[327958262,1716708649652,-500.0,0.00027671,4]
[327958263,1716708649661,-897.2,0.00027671,4]
[327958264,1716708649670,-500.0,0.00027671,4]
[327958265,1716708649679,-500.0,0.00027671,4]
[327958266,1716708649689,-569.02,0.00027671,4]
[327958267,1716708649699,-218.23717215,0.00027671,4]
[327958268,1716708649709,-500.0,0.00027671,4]
[327958269,1716708649720,-776.21,0.00027671,4]
[327958270,1716708649729,-500.0,0.00027671,4]
[327958271,1716708649739,-1484.13,0.00027671,4]
[327958272,1716708649749,-885.4,0.00027671,4]
[327958273,1716708649759,-591.61,0.00027671,4]
[327958274,1716708649769,-500.0,0.00027671,4]
[327958275,1716708649778,-500.0,0.00027671,4]
[327958276,1716708649789,-500.0,0.00027671,4]
[327958277,1716708649800,-151.0,0.00027671,7]
[327958278,1716708649809,-500.0,0.00027671,4]
[327958279,1716708649819,-151.0,0.00027671,7]
[327958280,1716708649829,-738.31,0.00027671,4]
[327958281,1716708649838,-1309.33,0.00027671,4]
[327958282,1716708649848,-500.0,0.00027671,4]
[327958283,1716708649859,-500.0,0.00027671,4]
[327958284,1716708649868,-500.0,0.00027671,4]
[327958285,1716708649878,-500.0,0.00027671,4]
[327958286,1716708649889,-500.0,0.00027671,4]
[327958287,1716708649899,-1377.41,0.00027671,4]
[327958288,1716708649908,-151.0,0.00027671,7]
[327958289,1716708649918,-151.0,0.00027671,7]
[327958290,1716708649927,-500.0,0.00027671,4]
[327958291,1716708649938,-655.51,0.00027671,4]
[327958292,1716708649954,-500.0,0.00027671,4]
[327958293,1716708650015,-15232.29,0.00027671,4]
[327958294,1716708650028,-715.32,0.00027671,4]
[327958295,1716708650039,-1051.64,0.00027671,4]
[327958296,1716708650048,-4316.32,0.00027671,4]
[327958297,1716708650058,-500.0,0.00027671,4]
[327958298,1716708650068,-250.15114996,0.00027671,4]
[327958299,1716708650078,-1106.0,0.00027671,4]
[327958300,1716708650088,-500.0,0.00027671,4]
[327958301,1716708650098,-500.0,0.00027671,4]
[327958302,1716708650107,-500.0,0.00027671,4]
[327958303,1716708650117,-1316.58,0.00027671,4]
[327958304,1716708650127,-1208.5,0.00027671,4]
[327958305,1716708650136,-500.0,0.00027671,4]
[327958306,1716708650146,-500.0,0.00027671,4]
[327958307,1716708650155,-500.0,0.00027671,4]
[327958308,1716708650164,-2581.83,0.00027671,4]
[327958309,1716708650173,-915.22,0.00027671,4]
[327958310,1716708650182,-500.0,0.00027671,4]
[327958311,1716708650191,-500.0,0.00027671,4]
[327958312,1716708650201,-500.0,0.00027671,4]
[327958313,1716708650210,-1435.83,0.00027671,4]
[327958314,1716708650219,-151.0,0.00027671,7]
[327958315,1716708650228,-500.0,0.00027671,4]
[327958316,1716708650237,-500.0,0.00027671,4]
[327958317,1716708650246,-1195.33,0.00027671,4]
[327958318,1716708650255,-1115.33,0.00027671,4]